bitfinex-derivatives/quotes_SOLF0:USTF0_20250206
["timestamp","ask_amount","ask_price","bid_price","bid_amount"]
[1738843914282,0.03737084,199.46,199.42,0.03471446]
[1738843914784,72.51078527,199.53,199.47,5.0108]
[1738843914974,67.50108527,199.53,199.43,13.59035399]
[1738843915482,67.50108527,199.53,199.49,5.0102]
[1738843915685,99.32,199.56,199.43,13.59035399]
[1738843915881,5.04166108,199.52,199.49,0.03792177]
[1738843916277,13.59035399,199.51,199.49,0.03792177]
[1738843916480,5.0102,199.5,199.49,0.03792177]
[1738843917584,21.74580208,199.52,199.49,0.03792177]
[1738843917884,0.03166108,199.52,199.49,0.03792177]
[1738843920179,0.03166108,199.52,199.5,5.0102]
[1738843920585,0.03166108,199.52,199.49,0.03792177]
[1738843920775,0.03166108,199.52,199.51,5.01]
[1738843920974,0.03166108,199.52,199.49,0.03792177]
[1738843924490,0.03166108,199.52,199.5,5.0102]
[1738843925185,0.03166108,199.52,199.49,0.03792177]
[1738843925787,0.03166108,199.52,199.49,5.04832177]
[1738843927192,0.03166108,199.52,199.49,0.03792177]
[1738843927795,0.03166108,199.52,199.49,5.04822177]
[1738843929597,0.03166108,199.52,199.5,5.0102]
[1738843929794,0.03166108,199.52,199.49,0.03792177]
[1738843929995,0.03166108,199.52,199.51,5.01]
[1738843930895,5.0087,199.57,199.54,5.0091]
[1738843931296,5.0087,199.57,199.5,1.545]
[1738843931492,5.0087,199.57,199.53,5.0094]
[1738843931698,5.0088,199.56,199.5,1.545]
[1738843931898,68.17525735,199.61,199.5,1.545]
[1738843932093,0.03480161,199.55,199.54,5.0091]
[1738843932298,5.0083,199.58,199.54,5.0091]
[1738843932499,0.0321755,199.56,199.54,5.0091]
[1738843932694,0.0321755,199.56,199.55,5.009]
[1738843933290,0.0321755,199.56,199.53,0.03672965]
[1738843933497,0.0321755,199.56,199.54,5.0091]
[1738843934198,0.0321755,199.56,199.55,5.009]
[1738843934699,0.0321755,199.56,199.53,0.03672965]
[1738843935490,0.0321755,199.56,199.55,5.009]
[1738843937099,13.55467424,199.66,199.59,5.0078]
[1738843937299,5.007,199.63,199.52,13.55467424]
[1738843937601,5.007,199.63,199.55,5.0089]
[1738843937901,5.007,199.63,199.52,13.55467424]
[1738843938095,5.0073,199.62,199.52,13.55467424]
[1738843938297,0.03672335,199.59,199.56,0.03440068]
[1738843938499,0.03672335,199.59,199.58,5.0081]
[1738843939001,5.0066,199.65,199.62,5.0072]
[1738843939204,13.55467424,199.69,199.55,13.55467424]
[1738843939901,13.55467424,199.69,199.58,13.55467424]
[1738843940094,0.03739635,199.64,199.6,0.03162049]
[1738843940801,0.03739635,199.64,199.63,5.007]
[1738843943805,0.03739635,199.64,199.62,5.0071]
[1738843944702,5.04419635,199.64,199.61,5.0074]
[1738843945201,5.0073,199.62,199.6,0.03162049]
[1738843945401,0.03739635,199.64,199.6,0.03162049]
[1738843946106,0.03739635,199.64,199.61,5.0073]
[1738843946403,0.03739635,199.64,199.6,0.03162049]
[1738843947203,0.03739635,199.64,199.63,5.007]
[1738843951999,5.0052,199.71,199.61,15.06787424]
[1738843952405,13.55467424,199.72,199.61,15.06787424]
[1738843952708,5.0054,199.7,199.66,5.0061]
[1738843953300,5.03916976,199.7,199.66,5.03956582]
[1738843954309,5.03916976,199.7,199.67,5.0058]
[1738843954809,0.03376976,199.7,199.67,5.0058]
[1738843955006,0.03376976,199.7,199.66,0.03346582]
[1738843955212,13.55467424,199.69,199.66,0.03346582]
[1738843955409,5.0059,199.68,199.66,0.03346582]
[1738843955607,13.55467424,199.69,199.66,0.03346582]
[1738843956611,5.0057,199.68,199.66,0.03346582]
[1738843956911,13.55467424,199.69,199.66,0.03346582]
[1738843957110,5.006,199.67,199.66,0.03346582]
[1738843959213,13.55467424,199.69,199.56,1.6352]
[1738843959416,13.55467424,199.64,199.56,1.6352]
[1738843959614,5.0074,199.62,199.57,5.0084]
[1738843960211,5.0078,199.6,199.56,5.0087]
[1738843960414,5.0078,199.6,199.58,0.03501242]
[1738843960613,0.03244314,199.61,199.58,0.03501242]
[1738843960914,5.0077,199.6,199.58,0.03501242]
[1738843961317,0.03244314,199.61,199.58,0.03501242]
[1738843962716,0.03244314,199.61,199.58,5.04321242]
[1738843962920,0.03244314,199.61,199.58,0.03501242]
[1738843964821,5.008,199.59,199.58,0.03501242]
[1738843975726,13.55467424,199.6,199.49,3.1841]
[1738843975933,13.55467424,199.57,199.49,3.1841]
[1738843976734,5.0091,199.55,199.49,3.1841]
[1738843976935,0.03226554,199.55,199.51,0.03350061]
[1738843977336,5.01,199.52,199.51,0.03350061]
[1738843982238,13.55467424,199.53,199.44,1.6028]
[1738843982432,5.012,199.43,199.38,6.5273]
[1738843982738,13.55467424,199.47,199.38,8.0131]
[1738843983436,0.03410896,199.44,199.41,0.03821312]
[1738843983635,5.012,199.43,199.41,0.03821312]
[1738843984840,0.03410896,199.44,199.41,0.03821312]
[1738843985335,0.03410896,199.44,199.43,5.012]
[1738843985540,0.03410896,199.44,199.41,0.03821312]
[1738843986145,5.04590896,199.44,199.41,0.03821312]
[1738843986733,0.03410896,199.44,199.41,0.03821312]
[1738843987041,5.012,199.43,199.41,0.03821312]
[1738843987244,0.03410896,199.44,199.41,0.03821312]
[1738843988635,5.0127,199.42,199.41,0.03821312]
[1738843993940,13.5887832,199.44,199.32,1.6465]
[1738843994145,5.0143,199.34,199.25,13.55467424]
[1738843994348,13.55467424,199.36,199.26,4.6717]
[1738843994544,13.55467424,199.36,199.28,5.0157]
[1738843994739,13.55467424,199.36,199.26,4.6717]
[1738843995242,0.03171485,199.33,199.29,0.03592407]
[1738843996446,5.04641485,199.33,199.29,0.03592407]
[1738843996946,0.03171485,199.33,199.32,5.0148]
[1738843998248,0.03171485,199.33,199.31,5.015]
[1738843999145,0.03171485,199.33,199.29,0.03592407]
[1738843999348,0.03171485,199.33,199.29,5.05132407]
[1738843999750,0.03171485,199.33,199.3,5.0152]
[1738844001050,0.03171485,199.33,199.32,5.0148]
[1738844001251,13.55467424,199.39,199.29,0.03592407]
[1738844001445,5.0135,199.37,199.33,5.0143]
[1738844001651,5.0135,199.37,199.28,13.55467424]
[1738844002348,0.03859598,199.34,199.31,0.0370312]
[1738844002549,0.03859598,199.34,199.33,5.0145]
[1738844005157,5.013,199.39,199.35,5.0138]
[1738844005954,5.013,199.39,199.31,13.55467424]
[1738844005955,5.0136,199.37,199.28,13.55467424]
[1738844006347,0.03338325,199.34,199.31,0.03354977]
[1738844007654,0.03338325,199.34,199.32,5.0146]
[1738844008051,0.03338325,199.34,199.31,0.03354977]
[1738844008755,0.03338325,199.34,199.33,5.0145]
[1738844009550,8.69227288,199.4,199.32,8.69227288]
[1738844009750,8.69227288,199.42,199.36,5.0137]
[1738844009955,78.24090804,199.47,199.38,8.69227288]
[1738844009956,8.69227288,199.46,199.38,8.69227288]
[1738844010857,0.03680718,199.44,199.4,0.03189717]
[1738844011352,8.72908006,199.44,199.4,0.03189717]
[1738844012754,0.03680718,199.44,199.4,0.03189717]
[1738844013856,0.03680718,199.44,199.41,5.0124]
[1738844014568,0.03680718,199.44,199.4,0.03189717]
[1738844014751,0.03680718,199.44,199.4,5.04439717]
[1738844015054,0.03680718,199.44,199.4,0.03189717]
[1738844016760,5.04870718,199.44,199.4,5.04459717]
[1738844017455,0.03680718,199.44,199.42,5.0122]
[1738844019759,0.03680718,199.44,199.43,5.012]
[1738844020258,0.03680718,199.44,199.4,0.03189717]
[1738844020659,0.03680718,199.44,199.42,5.012]
[1738844021758,0.03680718,199.44,199.4,0.03189717]
[1738844022159,5.0125,199.41,199.4,0.03189717]
[1738844022464,13.57381466,199.42,199.31,1.5498]
[1738844022658,13.57381466,199.37,199.31,1.5498]
[1738844022863,5.0142,199.35,199.31,6.5647]
[1738844023264,5.0138,199.36,199.32,5.0147]
[1738844023666,5.05042084,199.36,199.32,5.05261673]
[1738844023964,0.03662084,199.36,199.32,5.05261673]
[1738844024162,0.03662084,199.36,199.32,0.03791673]
[1738844025363,0.03662084,199.36,199.35,5.014]
[1738844026268,0.03662084,199.36,199.32,1.57371673]
[1738844027863,0.03662084,199.36,199.33,5.0145]
[1738844028067,0.03662084,199.36,199.32,1.57371673]
[1738844028869,0.03662084,199.36,199.34,5.0142]
[1738844029269,0.03662084,199.36,199.32,0.03791673]
[1738844030066,0.03662084,199.36,199.35,5.014]
[1738844032372,0.03662084,199.36,199.33,5.0145]
[1738844033468,0.03662084,199.36,199.34,5.0142]
[1738844034871,0.03662084,199.36,199.35,5.014]
[1738844035070,0.03662084,199.36,199.32,8.73068491]
[1738844035373,5.05042084,199.36,199.32,5.05241673]
[1738844035674,5.05042084,199.36,199.32,0.03791673]
[1738844035874,0.03662084,199.36,199.32,0.03791673]
[1738844036070,0.03662084,199.36,199.33,5.0145]
[1738844036373,0.03662084,199.36,199.32,0.03791673]
[1738844036771,5.0141,199.35,199.32,0.03791673]
[1738844038578,5.0141,199.35,199.32,5.05261673]
[1738844038877,0.03662084,199.36,199.32,0.03791673]
[1738844039478,0.03662084,199.36,199.33,5.0144]
[1738844040279,0.03662084,199.36,199.32,8.73068491]
[1738844040778,0.03662084,199.36,199.34,8.69276818]
[1738844041579,0.03662084,199.36,199.35,5.014]
[1738844041878,0.03662084,199.36,199.32,8.73068491]
[1738844042280,0.03662084,199.36,199.33,5.0144]
[1738844042579,0.03662084,199.36,199.32,8.73068491]
[1738844043285,0.03662084,199.36,199.33,5.0145]
[1738844044682,0.03662084,199.36,199.35,5.014]
[1738844045683,8.69276818,199.43,199.34,8.69276818]
[1738844045981,8.69276818,199.45,199.37,8.69276818]
[1738844046184,8.69276818,199.45,199.39,8.69276818]
[1738844046481,5.0119,199.44,199.41,5.0125]
[1738844046981,5.04349482,199.44,199.41,5.0469474]
[1738844047173,0.03159482,199.44,199.41,5.0469474]
[1738844047378,0.03159482,199.44,199.41,8.72721558]
[1738844048080,0.03159482,199.44,199.43,5.012]
[1738844053583,0.03159482,199.44,199.41,0.0344474]
[1738844053782,5.0122,199.42,199.41,0.0344474]
[1738844053986,13.57096706,199.43,199.3,28.86501568]
[1738844054286,13.57096706,199.43,199.33,5.0144]
[1738844054487,5.0134,199.38,199.33,5.0144]
[1738844055088,5.0134,199.38,199.34,5.0142]
[1738844055289,0.03799714,199.37,199.34,0.03356436]
[1738844055894,0.03799714,199.37,199.36,5.0137]
[1738844056093,13.57096706,199.46,199.35,13.57096706]
[1738844056393,3.7,199.47,199.35,13.57096706]
[1738844056885,13.57096706,199.49,199.32,13.57096706]
[1738844057087,13.57096706,199.52,199.38,13.57096706]
[1738844057286,0.03581282,199.42,199.38,13.57096706]
[1738844057490,5.04425031,199.47,199.43,0.0345976]
[1738844057690,5.0112,199.47,199.39,1.5123]
[1738844057889,5.04934544,199.47,199.43,0.03816704]
[1738844058493,0.03814544,199.47,199.43,0.03816704]
[1738844059087,0.03814544,199.47,199.43,5.05016704]
[1738844059290,0.03814544,199.47,199.43,0.03816704]
[1738844060290,5.0113,199.46,199.43,0.03816704]
[1738844061299,0.03814544,199.47,199.43,0.03816704]
[1738844061492,5.0115,199.45,199.43,0.03816704]
[1738844062492,0.03814544,199.47,199.43,0.03816704]
[1738844063593,0.03814544,199.47,199.44,5.0117]
[1738844063896,0.03814544,199.47,199.46,5.0112]
[1738844064099,0.03814544,199.47,199.43,0.03816704]
[1738844064597,0.03814544,199.47,199.45,5.0113]
[1738844066498,0.03814544,199.47,199.43,0.03816704]
[1738844066700,0.03814544,199.47,199.44,5.0117]
[1738844067199,0.03814544,199.47,199.43,5.05006704]
[1738844067704,5.04924544,199.47,199.43,5.05006704]
[1738844067898,0.03814544,199.47,199.44,5.0117]
[1738844069102,0.03814544,199.47,199.45,5.0115]
[1738844071105,5.04934544,199.47,199.43,5.05006704]
[1738844074010,5.04934544,199.47,199.44,5.0117]
[1738844075410,0.03814544,199.47,199.45,5.0113]
[1738844076213,0.03814544,199.47,199.43,0.03816704]
[1738844076414,5.04934544,199.47,199.44,5.0117]
[1738844079216,8.72264343,199.47,199.43,0.03816704]
[1738844079410,5.0113,199.46,199.43,5.05006704]
[1738844081610,8.72264343,199.47,199.43,0.03816704]
[1738844081813,8.68449799,199.45,199.43,0.03816704]
[1738844082011,8.68449799,199.45,199.34,1.5836]
[1738844082211,5.0135,199.37,199.34,1.5836]
[1738844082416,8.68449799,199.39,199.32,10.32539799]
[1738844082816,8.68449799,199.43,199.36,8.68449799]
[1738844083416,0.03408709,199.41,199.39,5.0128]
[1738844084615,8.71858508,199.41,199.38,0.03172958]
[1738844085818,8.71858508,199.41,199.38,5.04492958]
[1738844087421,0.03408709,199.41,199.39,5.013]
[1738844087823,0.03408709,199.41,199.38,8.71622757]
[1738844088015,0.03408709,199.41,199.4,5.0127]
[1738844091825,0.03408709,199.41,199.38,0.03172958]
[1738844092026,0.03408709,199.41,199.38,5.04482958]
[1738844092323,0.03408709,199.41,199.38,0.03172958]
[1738844092523,8.68449799,199.39,199.38,0.03172958]
[1738844094124,13.69749799,199.39,199.38,0.03172958]
[1738844097430,8.71858508,199.41,199.38,0.03172958]
[1738844097629,5.0128,199.4,199.38,0.03172958]
[1738844099530,5.013,199.39,199.38,0.03172958]
[1738844099729,13.69749799,199.39,199.38,0.03172958]
[1738844100527,8.68449799,199.39,199.3,5.015]
[1738844100835,13.69869799,199.35,199.28,8.68449799]
[1738844101130,13.69869799,199.35,199.31,5.015]
[1738844101433,5.0142,199.35,199.31,5.015]
[1738844101832,13.73165368,199.35,199.31,5.04837015]
[1738844102032,5.0143,199.34,199.31,0.03337015]
[1738844102230,8.71745368,199.35,199.31,0.03337015]
[1738844102632,5.0145,199.34,199.31,0.03337015]
[1738844103939,8.71745368,199.35,199.31,0.03337015]
[1738844104138,5.0148,199.32,199.31,0.03337015]
[1738844106241,8.68449799,199.33,199.23,1.5571]
[1738844106434,8.68449799,199.28,199.22,10.21929799]
[1738844106739,5.0164,199.26,199.22,5.0171]
[1738844107341,8.71785871,199.26,199.22,0.03494955]
[1738844107540,8.68449799,199.24,199.22,0.03494955]
[1738844107939,5.017,199.23,199.22,0.03494955]
[1738844108340,8.68449799,199.24,199.12,207.40277198]
[1738844108541,8.68449799,199.19,199.12,40.99831367]
[1738844109149,13.70349799,199.16,199.12,27.29411568]
[1738844109340,8.68449799,199.16,199.12,27.29411568]
[1738844109540,8.72005605,199.16,199.12,27.32930009]
[1738844109741,8.68449799,199.14,199.12,27.32930009]
[1738844110644,5.0195,199.13,199.12,27.32930009]
[1738844111037,5.0195,199.13,199.12,20.88420009]
[1738844111246,5.0195,199.13,199.12,12.67720009]
[1738844111947,0.03555806,199.16,199.12,0.03518441]
[1738844114346,0.03555806,199.16,199.15,5.019]
[1738844115036,5.0168,199.24,199.13,13.61735324]
[1738844115243,13.61735324,199.29,199.16,13.61735324]
[1738844115745,3.68,199.32,199.19,13.61735324]
[1738844115746,13.61735324,199.32,199.19,13.61735324]
[1738844116044,0.03391112,199.27,199.24,0.03221384]
[1738844119342,13.61735324,199.26,199.24,0.03221384]
[1738844119647,13.61735324,199.26,199.16,5.0186]
[1738844119837,13.61735324,199.21,199.16,5.0186]
[1738844120341,18.63415324,199.24,199.18,5.0182]
[1738844120748,0.0343846,199.23,199.19,0.03602656]
[1738844120948,0.0343846,199.23,199.21,5.0173]
[1738844121246,0.0343846,199.23,199.19,0.03602656]
[1738844121442,0.0343846,199.23,199.2,5.0178]
[1738844121842,0.0343846,199.23,199.19,0.03602656]
[1738844123047,5.0175,199.22,199.19,0.03602656]
[1738844123253,0.0343846,199.23,199.19,0.03602656]
[1738844123643,13.61735324,199.21,199.19,0.03602656]
[1738844123849,5.0178,199.2,199.19,0.03602656]
[1738844124347,13.61735324,199.21,199.11,1.5765]
[1738844124555,13.61735324,199.17,199.06,1.5755]
[1738844124949,13.61735324,199.14,199.05,3.1762]
[1738844125550,0.03286076,199.11,199.08,0.03742108]
[1738844126045,5.0204,199.1,199.08,0.03742108]
[1738844126243,0.03286076,199.11,199.08,0.03742108]
[1738844126854,5.0203,199.1,199.08,0.03742108]
[1738844127156,0.03286076,199.11,199.08,0.03742108]
[1738844128348,5.0203,199.1,199.08,0.03742108]
[1738844129052,5.0205,199.09,199.08,0.03742108]
[1738844129358,0.03286076,199.11,199.08,0.03742108]
[1738844129855,5.0203,199.1,199.08,0.03742108]
[1738844130752,0.03286076,199.11,199.08,0.03742108]
[1738844131451,0.03286076,199.11,199.08,5.05802108]
[1738844132147,0.03286076,199.11,199.1,5.0203]
[1738844132949,0.03286076,199.11,199.08,5.05802108]
[1738844133155,0.03286076,199.11,199.08,0.03742108]
[1738844133546,0.03286076,199.11,199.1,5.0203]
[1738844134049,0.03286076,199.11,199.09,3.2258]
[1738844135553,0.03286076,199.11,199.08,0.03742108]
[1738844136051,0.03286076,199.11,199.08,5.05802108]
[1738844137045,0.03286076,199.11,199.08,0.03742108]
[1738844137354,5.05296076,199.11,199.08,0.03742108]
[1738844137945,0.03286076,199.11,199.08,0.03742108]
[1738844138147,5.0204,199.1,199.08,0.03742108]
[1738844138452,0.03286076,199.11,199.08,0.03742108]
[1738844138654,5.0203,199.1,199.08,0.03742108]
[1738844139655,0.03286076,199.11,199.08,0.03742108]
[1738844140352,0.03286076,199.11,199.09,5.0203]
[1738844141656,0.03286076,199.11,199.08,5.05812108]
[1738844141954,0.03286076,199.11,199.08,0.03742108]
[1738844142457,5.0203,199.1,199.08,0.03742108]
[1738844143251,5.05296076,199.11,199.08,0.03742108]
[1738844143759,0.03286076,199.11,199.08,0.03742108]
[1738844144458,0.03286076,199.11,199.08,5.05812108]
[1738844144859,0.03286076,199.11,199.08,0.03742108]
[1738844145457,5.0205,199.1,199.08,0.03742108]
[1738844147162,0.03286076,199.11,199.08,0.03742108]
[1738844147359,5.0205,199.09,199.08,0.03742108]
[1738844147864,5.0204,199.1,199.08,0.03742108]
[1738844148164,0.03286076,199.11,199.08,0.03742108]
[1738844148661,5.0205,199.09,199.08,0.03742108]
[1738844151065,0.03286076,199.11,199.08,0.03742108]
[1738844151264,5.0204,199.1,199.08,0.03742108]
[1738844151564,0.03286076,199.11,199.08,0.03742108]
[1738844151759,5.0205,199.09,199.08,0.03742108]
[1738844153967,5.0203,199.1,199.08,0.03742108]
[1738844154263,0.03286076,199.11,199.08,0.03742108]
[1738844154768,5.05296076,199.11,199.08,0.03742108]
[1738844156469,0.03286076,199.11,199.09,5.0205]
[1738844157464,13.62128624,199.19,199.1,5.0203]
[1738844158065,13.62128624,199.19,199.08,5.0208]
[1738844158570,0.03507142,199.15,199.12,0.03655762]
[1738844159069,5.0195,199.14,199.12,0.03655762]
[1738844159972,5.0195,199.13,199.12,0.03655762]
[1738844165275,18.64078624,199.13,199.12,0.03655762]
[1738844165477,13.62128624,199.13,199.02,3.178]
[1738844165671,13.62128624,199.1,199.02,3.178]
[1738844166175,5.0206,199.09,199.02,3.178]
[1738844166473,13.62128624,199.1,199.04,5.0216]
[1738844166675,0.03535582,199.07,199.04,5.05903073]
[1738844167974,0.03535582,199.07,199.05,5.0215]
[1738844168171,0.03535582,199.07,199.04,0.03743073]
[1738844168772,0.03535582,199.07,199.06,5.0213]
[1738844168970,13.62128624,199.13,199.04,0.03743073]
[1738844169978,13.62128624,199.13,199.05,5.0215]
[1738844170180,0.03281713,199.1,199.05,5.0215]
[1738844170781,0.03281713,199.1,199.04,5.05913073]
[1738844171078,13.65410337,199.1,199.04,0.03743073]
[1738844171283,5.0215,199.06,199.04,0.03743073]
[1738844172379,5.0216,199.05,199.04,0.03743073]
[1738844172975,13.62128624,199.07,198.96,5.0236]
[1738844173176,13.62128624,199.07,198.95,1.5017]
[1738844173177,13.62128624,199.03,198.95,1.5017]
[1738844173783,13.62128624,199.06,198.95,1.5017]
[1738844173983,13.62128624,199.06,199.01,5.0225]
[1738844174283,13.62128624,199.06,198.95,1.5017]
[1738844174284,0.03260293,199.02,198.99,0.03626925]
[1738844174485,17.32128624,199.09,199.01,5.0226]
[1738844174685,0.0355204,199.02,198.97,13.62128624]
[1738844174880,5.0213,199.06,199.03,0.03188458]
[1738844175082,17.32128624,199.09,198.97,13.62128624]
[1738844175280,0.03773116,199.06,199.03,0.0324042]
[1738844175479,13.62128624,199.12,199.03,0.0324042]
[1738844175787,13.62128624,199.12,199.01,1.5375]
[1738844176181,13.62128624,199.15,199.03,13.62128624]
[1738844176384,13.62128624,199.15,199.04,1.5185]
[1738844176782,0.03674792,199.11,199.08,0.03782516]
[1738844176986,0.03674792,199.11,199.09,5.0205]
[1738844177783,5.0195,199.14,199.1,5.0203]
[1738844178187,99.44,199.17,199.08,0.03782516]
[1738844178491,99.44,199.17,199.09,5.0203]
[1738844178894,0.03401125,199.15,199.1,5.0203]
[1738844180587,0.03401125,199.15,199.14,5.0193]
[1738844182200,5.0173,199.22,199.17,5.0184]
[1738844182497,5.0173,199.22,199.1,13.62128624]
[1738844182697,20.62164317,199.23,199.16,13.62128624]
[1738844182890,20.62164317,199.23,199.17,3.0506]
[1738844183090,20.62164317,199.23,199.22,5.0173]
[1738844184100,0.03645915,199.24,199.23,5.017]
[1738844184293,20.62164317,199.28,199.19,13.62128624]
[1738844184598,20.62164317,199.28,199.27,5.016]
[1738844186600,20.62164317,199.28,199.26,0.03167338]
[1738844187199,55.02506271,199.29,199.26,0.03167338]
[1738844187200,0.03401424,199.29,199.26,0.03167338]
[1738844187595,5.04961424,199.29,199.26,0.03167338]
[1738844187795,0.03401424,199.29,199.26,0.03167338]
[1738844188298,0.03401424,199.29,199.26,5.04787338]
[1738844188692,0.03401424,199.29,199.26,0.03167338]
[1738844189995,5.04971424,199.29,199.26,0.03167338]
[1738844190192,0.03401424,199.29,199.26,0.03167338]
[1738844190600,0.03401424,199.29,199.26,5.04797338]
[1738844190798,0.03401424,199.29,199.26,0.03167338]
[1738844191207,13.62128624,199.27,199.26,0.03167338]
[1738844192205,18.63728624,199.27,199.26,0.03167338]
[1738844194710,5.016,199.27,199.26,0.03167338]
[1738844195605,0.03401424,199.29,199.26,0.03167338]
[1738844196704,81.86658415,199.39,199.26,0.03167338]
[1738844197005,81.86658415,199.39,199.32,5.0147]
[1738844197210,5.0136,199.37,199.32,5.0147]
[1738844197605,81.86658415,199.39,199.31,5.015]
[1738844197804,0.03348724,199.36,199.33,0.03195686]
[1738844199311,0.03348724,199.36,199.34,5.014]
[1738844199705,0.03348724,199.36,199.33,0.03195686]
[1738844199906,0.03348724,199.36,199.35,5.014]
[1738844201711,0.03348724,199.36,199.34,5.0142]
[1738844201906,0.03348724,199.36,199.33,0.03195686]
[1738844204211,5.04728724,199.36,199.33,0.03195686]
[1738844204411,0.03348724,199.36,199.33,0.03195686]
[1738844204909,5.014,199.35,199.33,0.03195686]
[1738844206212,5.04728724,199.36,199.33,0.03195686]
[1738844206612,5.04728724,199.36,199.33,5.04635686]
[1738844207504,0.03348724,199.36,199.34,5.0142]
[1738844207707,0.03348724,199.36,199.33,0.03195686]
[1738844208114,0.03348724,199.36,199.35,5.014]
[1738844209012,0.03348724,199.36,199.33,5.04625686]
[1738844209214,0.03348724,199.36,199.33,0.03195686]
[1738844209806,21.7723962,199.36,199.33,0.03195686]
[1738844210108,21.7723962,199.36,199.26,1.6017]
[1738844210316,21.73890896,199.33,199.21,3.0777]
[1738844210509,5.0154,199.3,199.23,5.017]
[1738844210817,21.73890896,199.33,199.23,5.017]
[1738844211211,5.0158,199.29,199.21,3.0777]
[1738844211514,5.0158,199.29,199.26,0.03376776]
[1738844212212,0.03403444,199.3,199.26,0.03376776]
[1738844212815,0.03403444,199.3,199.27,5.016]
[1738844213015,0.03403444,199.3,199.26,0.03376776]
[1738844213312,0.03403444,199.3,199.29,5.0155]
[1738844213612,0.03403444,199.3,199.26,0.03376776]
[1738844214004,0.03403444,199.3,199.27,5.0158]
[1738844214205,0.03403444,199.3,199.26,0.03376776]
[1738844215906,0.03403444,199.3,199.27,5.016]
[1738844216314,0.03403444,199.3,199.29,5.0155]
[1738844217817,0.2811,199.4,199.31,5.0148]
[1738844218018,5.0136,199.37,199.27,1.5151]
[1738844218509,21.73890896,199.42,199.27,1.5151]
[1738844218714,5.0133,199.38,199.33,5.0145]
[1738844218913,0.03174074,199.36,199.33,5.05303816]
[1738844219110,0.03174074,199.36,199.35,5.014]
[1738844219317,0.03174074,199.36,199.33,0.03853816]
[1738844220911,13.6184176,199.36,199.33,0.03853816]
[1738844221114,5.0143,199.34,199.33,0.03853816]
[1738844222919,13.6184176,199.36,199.33,0.03853816]
[1738844223121,5.04554074,199.36,199.33,0.03853816]
[1738844223820,0.03174074,199.36,199.33,0.03853816]
[1738844224717,0.03174074,199.36,199.35,5.014]
[1738844226616,0.03174074,199.36,199.33,0.03853816]
[1738844227726,0.03174074,199.36,199.35,5.014]
[1738844228128,0.03174074,199.36,199.33,0.03853816]
[1738844228926,5.04554074,199.36,199.33,0.03853816]
[1738844229323,0.03174074,199.36,199.33,0.03853816]
[1738844230926,0.03174074,199.36,199.35,5.014]
[1738844231322,5.0119,199.44,199.4,5.0127]
[1738844231520,13.58667686,199.48,199.36,1.636]
[1738844232323,13.58667686,199.48,199.39,5.0129]
[1738844232627,0.03580881,199.44,199.4,0.03253421]
[1738844233229,13.58667686,199.42,199.4,0.03253421]
[1738844233629,0.03580881,199.44,199.4,0.03253421]
[1738844235530,5.0122,199.43,199.4,0.03253421]
[1738844235727,0.03580881,199.44,199.4,0.03253421]
[1738844236430,5.04770881,199.44,199.4,0.03253421]
[1738844236831,5.0125,199.41,199.4,0.03253421]
[1738844238337,13.58667686,199.43,199.3,3.2655]
[1738844238529,13.58667686,199.36,199.3,3.2655]
[1738844238730,13.58667686,199.36,199.3,1.624]
[1738844239535,0.03432213,199.35,199.31,0.03352877]
[1738844240431,5.0148,199.32,199.31,0.03352877]
[1738844240625,13.58667686,199.33,199.31,0.03352877]
[1738844240831,0.03432213,199.35,199.31,0.03352877]
[1738844241530,13.58667686,199.33,199.31,0.03352877]
[1738844241728,13.58667686,199.33,199.2,22.46811292]
[1738844242027,13.58667686,199.29,199.2,1.6096]
[1738844242228,5.0166,199.25,199.2,1.6096]
[1738844242436,13.58667686,199.26,199.17,1.6413]
[1738844243233,0.03318024,199.23,199.2,0.03566968]
[1738844245537,0.03318024,199.23,199.21,5.0174]
[1738844245739,0.03318024,199.23,199.2,0.03566968]
[1738844248040,13.6198571,199.23,199.2,0.03566968]
[1738844248533,5.0175,199.21,199.2,0.03566968]
[1738844255551,13.6198571,199.23,199.12,1.589]
[1738844255757,5.0191,199.15,199.12,1.589]
[1738844256149,5.0195,199.13,199.12,1.589]
[1738844256447,13.58667686,199.16,199.07,1.5071]
[1738844256842,13.6201334,199.13,199.1,0.03574651]
[1738844257051,5.0202,199.11,199.1,0.03574651]
[1738844257751,18.6398334,199.13,199.1,0.03574651]
[1738844259849,0.03345654,199.13,199.11,5.02]
[1738844260043,0.03345654,199.13,199.1,0.03574651]
[1738844260345,13.58667686,199.22,199.11,13.58667686]
[1738844260550,13.58667686,199.22,199.15,5.0189]
[1738844261045,3.68,199.24,199.11,15.15907686]